Workbook

Sheet 1. Projection Worksheet
A2: =MID(C3,3,2) -> 04 | B2: Name: | C2: Village of Coxsackie | G2: Fiscal Year End: | H2: 2018-05-31
B3: MuniCode: | C3: 190420801180 | G3: Year Last Filed: | H3: 2017
B4: County: | C4: Greene | I4: Enter data here and scroll down to see the projected fiscal stress scores.
A5: No | I5: Projection
B6: Fiscal Stress Financial Indicator Data Inputs | F6: Data | I6: Current Fiscal Year | J6: Next Fiscal Year
B7: Financial Indicators | C7: Components | D7: Account Code(s) | E7: Fund(s) | F7: =H3-2 -> 2015 | G7: =H3-1 -> 2016 | H7: =H3 -> 2017 | I7: =H3+1 -> 2018 | J7: =H3+2 -> 2019
A8: Yes | B8: 1 | C8: Assigned Unappropriated and Unassigned Fund Balance | D8: 915 & 917 | E8: General Fund | F8: 34744 | G8: 15409 | H8: 746354
B9: 2 | C9: Total Fund Balance | D9: 8029 | F9: 810676 | G9: 949694 | H9: 911069
B10: 1, 2 | C10: Gross Expenditures (includes transfers out) | F10: 1518247 | G10: 1567435 | H10: 1794129
B11: 3, 5 | C11: Gross Expenditures (includes transfers out) | E11: Combined Funds | F11: 3257081 | G11: 3381108 | H11: 3752673
B12: 3 | C12: Gross Revenues (includes transfers in) | F12: 3384086 | G12: 3718980 | H12: 4697891
B13: 6 | C13: Total Revenues (does not include transfers in) | E13: General Fund | F13: 1674084 | G13: 1706453 | H13: 1752422
B14: 8, 9 | C14: Total Revenues (does not include transfers in) | E14: All Funds Except Capital Projects Fund | F14: 3605470 | G14: 3945474 | H14: 4922406
B15: 4 | C15: Cash and Investments | D15: 200-223, 450 & 451 | E15: Combined Funds | F15: 195775 | G15: 640821 | H15: 1387237
B16: 5 | D16: 200, 201, 450 & 451 | F16: 195425 | G16: 640471 | H16: 1386887
B17: 4 | C17: Current Liabilities | D17: 600-626, 631-637, 639-668 | F17: 54114 | G17: 278560 | H17: 209811
B18: 4 | C18: Taxes Receivable | D18: 280, 290 & 295 | F18: 0 | G18: 0 | H18: 0
B19: 6, 7 | C19: Short-Term Cash-Flow Debt | D19: Revenue Anticipation Notes, Tax Anticipation Notes, Budget Notes, and Defiency Notes Only | E19: All Funds | F19: 0 | G19: 150000 | H19: 0
B20: 8 | C20: Personal Service and Employee Benefits | D20: Expenditure Object Codes: .1 (Personal Services) and .8 (Employee Benefits) | E20: All Funds Except Capital Projects Fund | F20: 1376004 | G20: 1491657 | H20: 1485560
B21: 9 | C21: Debt Service | D21: Expenditure Object Codes: .6 (Debt Principal) and .7 (Debt Interest) | F21: 602669 | G21: 595809 | H21: 672408
B22: 9 | C22: Proceeds from Current Refunding Bonds Proceeds | D22: 5792 | F22: 0 | G22: 0 | H22: 0 | M22: IF((I17-I18)=0,0,IF(AND((I17-I18)<=0,I15>=0),0,ROUND(I15/(I17-I18),4)))
M23: ROUND(IF(I15=0,0,IF(AND(I15<=0, I13 >= 0),0,I13/I15)),4)
F24: Public Scores | H24: Public Scores | I24: Projected Scores | M24: IF(AND(J13="", J15=""), "",IF(J15 = 0,0,IF(AND(J15 <=0, J13 >=0),0,IF(O24<=50%,10,IF(O24<=75%,6.67,IF(O24<=100%,3.33,0))))))
F25: Pre System Enhancements | H25: Post System Enhancements | I25: (Based on Data Elements Above)
B26: Financial Indicators | C26: Fiscal Stress Financial Indicators | F26: =F7 -> 2015 | G26: =G7 -> 2016 | H26: =H7 -> 2017 | I26: =I7 -> 2018 | J26: =J7 -> 2019 | L26: =M26-1 -> 2015 | M26: =N26-1 -> 2016 | N26: =H7 -> 2017 | O26: ="Projected " & N26 +1 -> Projected 2018 | P26: ="Projected " & N26 +2 -> Projected 2019
B27: 1 | C27: Assigned and Unassigned Fund Balance as a Percentage (%) of Gross Expenditures | F27: 25 | G27: 6.25 | H27: 0 | I27: =IFERROR(IF(I8/I10<=0,25,IF((I8/I10)<=3.33%,18.75,IF((I8/I10)<=6.67%,12.5,IF((I8/I10)<=10%,6.25,0)))), "") ->  | J27: =IFERROR(IF(J8/J10<=0,25,IF((J8/J10)<=3.33%,18.75,IF((J8/J10)<=6.67%,12.5,IF((J8/J10)<=10%,6.25,0)))), "") ->  | L27: =ROUND(F8/F10,4) -> 0.0229 | M27: =ROUND(G8/G10,4) -> 0.0098 | N27: =ROUND(H8/H10,4) -> 0.416 | O27: =ROUND(I8/I10,4) ->  | P27: =ROUND(J8/J10,4) ->  | Q27: Assigned Unassigned FB / Gross Exp (General Fund)
B28: 2 | C28: Total Fund Balance as a Percentage (%) of Gross Expenditures | F28: 6.25 | G28: 6.25 | H28: 0 | I28: =IFERROR(IF(I9/I10 <= 0, 25,IF((I9/I10)<=10%,18.75,IF((I9/I10)<=15%,12.5,IF((I9/I10)<=20%,6.25,0)))), "") ->  | J28: =IFERROR(IF(J9/J10 <= 0, 25,IF((J9/J10)<=10%,18.75,IF((J9/J10)<=15%,12.5,IF((J9/J10)<=20%,6.25,0)))), "") ->  | L28: =ROUND(F9/F10,4) -> 0.534 | M28: =ROUND(G9/G10,4) -> 0.6059 | N28: =ROUND(H9/H10,4) -> 0.5078 | O28: =ROUND(I9/I10,4) ->  | P28: =ROUND(J9/J10,4) ->  | Q28: Total FB / Gross Exp (General Fund)
B29: 3 | C29: Operating Deficits | F29: 6.67 | G29: 3.33 | H29: 0 | I29: =IFERROR(ROUND((IF(O29<0,1,0) + IF(N29 < 0,1,0) + IF(M29 < 0,1,0)) * 3.333,2), "") ->  | J29: =IFERROR(ROUND((IF(P29<0,1,0) + IF(O29 < 0,1,0) + IF(N29 < 0,1,0)) * 3.333,2), "") ->  | L29: =ROUND((F12-F11)/F11,4) -> 0.039 | M29: =ROUND((G12-G11)/G11,4) -> 0.0999 | N29: =ROUND((H12-H11)/H11,4) -> 0.2519 | O29: =ROUND((I12-I11)/I11,4) ->  | P29: =ROUND((J12-J11)/J11,4) ->  | Q29: Deficit / Gross Expenditures (Combined Fund)
B30: 4 | C30: Cash Ratio - Cash and Investments as a Percentage (%) of Current Liabilities | F30: 0 | G30: 0 | H30: 0 | I30: =IF(AND(I15="", I17="", I18=""), "", IF((I17-I18) = 0,0,IF(AND((I17-I18) <=0, I15 >=0),0,IF(O30<=50%,10,IF(O30<=75%,6.67,IF(O30<=100%,3.33,0)))))) ->  | J30: =IF(AND(J15="", J17="", J18=""), "", IF((J17-J18) = 0,0,IF(AND((J17-J18) <=0, J15 >=0),0,IF(P30<=50%,10,IF(P30<=75%,6.67,IF(P30<=100%,3.33,0)))))) ->  | K30: =IF($A$2<="02", 0.5,0.3333) -> 0.3333 | L30: =IF((F17-F18)=0,0,IF(AND((F17-F18)<=0,F15>=0),0,ROUND(F15/(F17-F18),4))) -> 3.6178 | M30: =IF((G17-G18)=0,0,IF(AND((G17-G18)<=0,G15>=0),0,ROUND(G15/(G17-G18),4))) -> 2.3005 | N30: =IF((H17-H18)=0,0,IF(AND((H17-H18)<=0,H15>=0),0,ROUND(H15/(H17-H18),4))) -> 6.6118 | O30: =IF((I17-I18)=0,0,IF(AND((I17-I18)<=0,I15>=0),0,ROUND(I15/(I17-I18),4))) -> 0 | P30: =IF((J17-J18)=0,0,IF(AND((J17-J18)<=0,J15>=0),0,ROUND(J15/(J17-J18),4))) -> 0 | Q30: Cash Investment / Current Liability
B31: 5 | C31: Cash as a Percentage (%) of Monthly Gross Expenditures | F31: 3.33 | G31: 0 | H31: 0 | I31: =IFERROR(IF((I16/(I11/12))<=$K$30,10,IF((I16/(I11/12))<=$K$31,6.67,IF((I16/(I11/12))<=$K$32,3.33,0))), "") ->  | J31: =IFERROR(IF((J16/(J11/12))<=$K$30,10,IF((J16/(J11/12))<=$K$31,6.67,IF((J16/(J11/12))<=$K$32,3.33,0))), "") ->  | K31: =IF($A$2<="02", 1,0.6667) -> 0.6667 | L31: =ROUND((F16/(F11/12)),4) -> 0.72 | M31: =ROUND((G16/(G11/12)),4) -> 2.2731 | N31: =ROUND((H16/(H11/12)),4) -> 4.4349 | O31: =ROUND((I16/(I11/12)),4) ->  | P31: =ROUND((J16/(J11/12)),4) ->  | Q31: Cash / Avg Monthly Exp
B32: 6 | C32: Short-Term Cash-Flow Debt Issuance as a Percentage (%) of Total Revenues | F32: 0 | G32: 3.33 | H32: 0 | I32: =IF(I19="", "",IF(O32>0.15,5,IF(O32>0.05,3.33,IF(O32>0,1.67,0)))) ->  | J32: =IF(J19="", "",IF(P32>0.15,5,IF(P32>0.05,3.33,IF(P32>0,1.67,0)))) ->  | K32: =IF($A$2<="02", 1.5,1) -> 1 | L32: =IF(ISERROR(F19/F13),0,ROUND(F19/F13,4)) -> 0 | M32: =IF(ISERROR(G19/G13),0,ROUND(G19/G13,4)) -> 0.0879 | N32: =IF(ISERROR(H19/H13),0,ROUND(H19/H13,4)) -> 0 | O32: =IF(ISERROR(I19/I13),0,ROUND(I19/I13,4)) -> 0 | P32: =IF(ISERROR(J19/J13),0,ROUND(J19/J13,4)) -> 0 | Q32: Debt / Total Revenues
B33: 7 | C33: Short-Term Cash-Flow Debt Issuance Trend | F33: 0 | G33: 1.67 | H33: 0 | I33: =IF(I19="", "",IF(I19>0, IF(H19>0, IF(G19>0,5,3.33),1.67),0)) ->  | J33: =IF(J19="", "", IF(J19>0, IF(I19>0, IF(H19>0,5,3.33),1.67),0)) -> 
B34: 8 | C34: Personal Service and Employee Benefits as a Percentage (%) of Total Revenues (3 year avg) | F34: 0 | G34: 0 | H34: 0 | I34: =IFERROR(IF(O34>=75%,5,IF(O34>=70%,3.33,IF(O34>=65%,1.67,0))), "") ->  | J34: =IFERROR(IF(P34>=75%,5,IF(P34>=70%,3.33,IF(P34>=65%,1.67,0))), "") ->  | N34: =ROUND(AVERAGE(ROUND(H20/H14,4), ROUND(G20/G14,4),ROUND(F20/F14,4)),4) -> 0.3538 | O34: =ROUND(AVERAGE(ROUND(I20/I14,4), ROUND(H20/H14,4),ROUND(G20/G14,4)),4) ->  | P34: =ROUND(AVERAGE(ROUND(J20/J14,4), ROUND(I20/I14,4),ROUND(H20/H14,4)),4) ->  | Q34: Pers Svc & Benefits / Net Revenues (3 year average)
B35: 9 | C35: Debt Service as a Percentage (%) of Total Revenues (3 year avg) | F35: 3.33 | G35: 3.33 | H35: 3.33 | I35: =IFERROR(IF(O35>=20%,5,IF(O35>=15%,3.33,IF(O35>=10%,1.67,0))), "") ->  | J35: =IFERROR(IF(P35>=20%,5,IF(P35>=15%,3.33,IF(P35>=10%,1.67,0))), "") ->  | N35: =ROUND(AVERAGE(ROUND((H21-H22)/H14,4), ROUND((G21-G22)/G14,4),ROUND((F21-F22)/F14,4)),4) -> 0.1516 | O35: =ROUND(AVERAGE(ROUND((I21-I22)/I14,4), ROUND((H21-H22)/H14,4),ROUND((G21-G22)/G14,4)),4) ->  | P35: =ROUND(AVERAGE(ROUND((J21-J22)/J14,4), ROUND((I21-I22)/I14,4),ROUND((H21-H22)/H14,4)),4) ->  | Q35: Debt Svc / Net Rev (3 year average)
E37: Total Points* | F37: 44.6 | G37: 24.2 | H37: 3.3 | I37: =ROUND(SUM(I27:I35),1) -> 0 | J37: =ROUND(SUM(J27:J35),1) -> 0
E38: Score Classification | F38: No Designation | G38: No Designation | H38: No Designation | I38: =IF(I37>=65,"Significant Fiscal Stress",IF(I37>=55,"Moderate Fiscal Stress",IF(I37>=45,"Susceptible Fiscal Stress","No Designation"))) -> No Designation | J38: =IF(J37>=65,"Significant Fiscal Stress",IF(J37>=55,"Moderate Fiscal Stress",IF(J37>=45,"Susceptible Fiscal Stress","No Designation"))) -> No Designation
J40: Point Range
C41: General Fund | D41: Combined Funds | E41: Revenue and Expenditure Definitions | I41: Classification | J41: (Out of 100 total pts)
B42: Villages | C42: A | D42: A, FX, G, ES, EW | E42: Gross Revenues = Revenues and Other Sources | I42: Significant | J42: 65 - 100
E43: Total Revenues = Revenues | I43: Moderate | J43: 55 - 64.9
E44: Gross Expenditures = Expenditures and Other Uses | I44: Susceptible | J44: 45 - 54.9
I45: No Designation | J45: 0 - 44.9
B47: *Indicator points are rounded to two decimal places. Total points are rounded to one decimal place.
B49: Data as of 2/28/2018

Sheet 2. Graphs
B2: ='1. Projection Worksheet'!C2 & ": Projected data for " & C9 & " and " & C9 + 1 & " are based on Projection Worksheet " -> Village of Coxsackie: Projected data for 2018 and 2019 are based on Projection Worksheet
B3: Indicator 1 | H3: Indicator 2
C5: Year | D5: Amt | I5: Year
C6: =C7-1 -> 2015 | D6: ='1. Projection Worksheet'!L27 -> 0.0229 | I6: =I7-1 -> 2015 | J6: ='1. Projection Worksheet'!L28 -> 0.534
C7: =C8-1 -> 2016 | D7: ='1. Projection Worksheet'!M27 -> 0.0098 | I7: =I8-1 -> 2016 | J7: ='1. Projection Worksheet'!M28 -> 0.6059
C8: ='1. Projection Worksheet'!H7 -> 2017 | D8: ='1. Projection Worksheet'!N27 -> 0.416 | I8: =C8 -> 2017 | J8: ='1. Projection Worksheet'!N28 -> 0.5078
C9: =C8+1 -> 2018 | D9: ='1. Projection Worksheet'!O27 ->  | I9: =I8+1 -> 2018 | J9: ='1. Projection Worksheet'!O28 -> 
C10: =C9+1 -> 2019 | D10: ='1. Projection Worksheet'!P27 ->  | I10: =I9+1 -> 2019 | J10: ='1. Projection Worksheet'!P28 -> 
C11: pts | D11: Left | I11: pts | J11: Left
C12: a | D12: -0.1000000015 | I12: a | J12: 0
C13: b | D13: 0.0333 | I13: b | J13: 0.1 | Q13: `
C14: c | D14: 0.0333 | I14: c | J14: 0.05
C15: c | D15: 0.0333 | I15: c | J15: 0.05
F26: Indicator 3
F28: ind 3
F29: Year
F30: =F31-1 -> 2015 | G30: ='1. Projection Worksheet'!L29 -> 0.039
F31: =F32-1 -> 2016 | G31: ='1. Projection Worksheet'!M29 -> 0.0999
F32: =I8 -> 2017 | G32: ='1. Projection Worksheet'!N29 -> 0.2519
F33: =F32+1 -> 2018 | G33: ='1. Projection Worksheet'!O29 -> 
F34: =F33+1 -> 2019 | G34: ='1. Projection Worksheet'!P29 -> 
B49: Indicator 4 | H49: Indicator 5
C51: Year | I51: ind 5
C52: =C53-1 -> 2015 | D52: ='1. Projection Worksheet'!L30 -> 3.6178 | I52: Year
C53: =C54-1 -> 2016 | D53: ='1. Projection Worksheet'!M30 -> 2.3005 | I53: =I54-1 -> 2015 | J53: ='1. Projection Worksheet'!L31 -> 0.72
C54: =C8 -> 2017 | D54: ='1. Projection Worksheet'!N30 -> 6.6118 | I54: =I55-1 -> 2016 | J54: ='1. Projection Worksheet'!M31 -> 2.2731
C55: =C54+1 -> 2018 | D55: ='1. Projection Worksheet'!O30 -> 0 | I55: =C8 -> 2017 | J55: ='1. Projection Worksheet'!N31 -> 4.4349
C56: =C55+1 -> 2019 | D56: ='1. Projection Worksheet'!P30 -> 0 | I56: =I55+1 -> 2018 | J56: ='1. Projection Worksheet'!O31 -> 
C57: pts | D57: Left | I57: =I56+1 -> 2019 | J57: ='1. Projection Worksheet'!P31 -> 
D58: 0 | I58: pts | J58: Left
C59: 3 points | D59: 0.5 | I59: a | J59: 0
C60: 2 points | D60: 0.25 | I60: b | J60: ='1. Projection Worksheet'!$K$30 -> 0.3333
C61: 1 point | D61: 0.25 | I61: c | J61: ='1. Projection Worksheet'!$K$30 -> 0.3333
I62: d | J62: ='1. Projection Worksheet'!$K$30 -> 0.3333
F71: Indicator 6/7
F73: ind 6
F74: Year
F75: =F76-1 -> 2015 | G75: ='1. Projection Worksheet'!L32 -> 0
F76: =F77-1 -> 2016 | G76: ='1. Projection Worksheet'!M32 -> 0.0879
F77: =I8 -> 2017 | G77: ='1. Projection Worksheet'!N32 -> 0
F78: =F77+1 -> 2018 | G78: ='1. Projection Worksheet'!O32 -> 0
F79: =F78+1 -> 2019 | G79: ='1. Projection Worksheet'!P32 -> 0
F80: pts | G80: Left
F81: a | G81: 0.05
F82: b | G82: 0.1
F83: c | G83: 1
F84: d | G84: 0 | I84: 0.25
B94: Indicator 8 | H94: Indicator 9
C95: ind 8
C96: Yr | I96: ind 9
C97: =C98-1 -> 2015 | D97: ='1. Projection Worksheet'!L$34 -> 0 | I97: Yr
C98: =C99-1 -> 2016 | D98: ='1. Projection Worksheet'!M$34 -> 0 | I98: =I99-1 -> 2015 | J98: ='1. Projection Worksheet'!L$35 -> 0
C99: =C8 -> 2017 | D99: ='1. Projection Worksheet'!N$34 -> 0.3538 | I99: =I100-1 -> 2016 | J99: ='1. Projection Worksheet'!M$35 -> 0
C100: =C99+1 -> 2018 | D100: ='1. Projection Worksheet'!O$34 ->  | I100: =C8 -> 2017 | J100: ='1. Projection Worksheet'!N$35 -> 0.1516
C101: =C100+1 -> 2019 | D101: ='1. Projection Worksheet'!P$34 ->  | I101: =I100+1 -> 2018 | J101: ='1. Projection Worksheet'!O$35 -> 
C102: pts | D102: Left | I102: =I101+1 -> 2019 | J102: ='1. Projection Worksheet'!P$35 -> 
C103: a | D103: 0.65 | J103: Left
C104: b | D104: 0.05 | J104: 0.1
C105: c | D105: 0.05 | J105: 0.05
D106: 0.8000000119 | J106: 0.05
J107: 0.3
B113: These graphs are provided for informational purposes. Calculations are based on the financial information provided by the municipality. The last two data points of each graph are based on projection numbers entered by the user. OSC takes no responsibility for the accuracy of the projection or the submitted financial information.
B119: Data as of 2/28/2018
N138: `

Sheet 3. Comparison
A1: ='1. Projection Worksheet'!C3 -> 190420801180 | D1: 18
B2: ='1. Projection Worksheet'!C2 -> Village of Coxsackie
B3: Indicator 1 | I3: Indicator 2
C4: Indicator 1 | J4: ind 2
C5: pts | D5: Left | J5: Indicator 2
C6: 25 points | D6: -0.05 | J6: 25 points | K6: -0.05000000075
C7: 18.75 points | D7: 0.0333 | J7: 18.75 points | K7: 0.1
C8: 12.5 points | D8: 0.0333 | J8: 12.5 points | K8: 0.05
C9: 6.25 point | D9: 0.0333 | J9: 6.25 points | K9: 0.05 | P9: Reported in
C10: name | D10: amt | J10: name | K10: amt | P10: ="for " & '1. Projection Worksheet'!$H$3 -> for 2017
C11: ='1. Projection Worksheet'!C2 -> Village of Coxsackie | D11: ='1. Projection Worksheet'!N27 -> 0.416 | J11: =C11 -> Village of Coxsackie | K11: ='1. Projection Worksheet'!N28 -> 0.5078 | O11: =J12 -> All Villages
C12: All Villages | D12: 0.4349973306 | J12: =C12 -> All Villages | K12: 0.6676197125 | O12: =J13 -> Capital District Villages
C13: Capital District Villages | D13: 0.3537526316 | J13: =C13 -> Capital District Villages | K13: 0.6513578947 | O13: =J14 -> Medium Upstate Villages
C14: Medium Upstate Villages | D14: 0.3672507463 | J14: =C14 -> Medium Upstate Villages | K14: 0.6807798507
H22: `
D23: Indicator 3
H26: ind 3 | I26: Indicator 3
H28: name | I28: amount | K28: Peer Group Used in Comparison for all Indicators
H29: =C11 -> Village of Coxsackie | I29: ='1. Projection Worksheet'!N29 -> 0.2519
H30: =J12 -> All Villages | I30: 0.04416324435 | K30: =O11 -> All Villages | M30: 487
H31: =J13 -> Capital District Villages | I31: 0.04072368421 | K31: =O12 -> Capital District Villages | M31: 38
H32: =J14 -> Medium Upstate Villages | I32: 0.04078880597 | K32: =O13 -> Medium Upstate Villages | M32: 134
B45: Indicator 4 | I45: Indicator 5
D46: ind 4
C47: pts | D47: Left | K47: ind 5
C48: a | D48: -100000 | J48: pts | K48: Left
C49: 3 points | D49: 0.5 | J49: a | K49: -1
C50: 2 points | D50: 0.25 | J50: 3 points | K50: ='1. Projection Worksheet'!$K$30 -> 0.3333
C51: 1 point | D51: 0.25 | J51: 2 points | K51: ='1. Projection Worksheet'!$K$30 -> 0.3333
C52: name | D52: amt | J52: 1 point | K52: ='1. Projection Worksheet'!$K$30 -> 0.3333 | P52: Reported in
C53: =H29 -> Village of Coxsackie | D53: ='1. Projection Worksheet'!N30 -> 6.6118 | P53: ="for " & '1. Projection Worksheet'!$H$3 -> for 2017
C54: =H30 -> All Villages | D54: 12.74575 | J54: name | K54: amt | O54: =K30 -> All Villages
C55: =H31 -> Capital District Villages | D55: 9.1713 | J55: =C53 -> Village of Coxsackie | K55: ='1. Projection Worksheet'!N31 -> 4.4349 | O55: =K31 -> Capital District Villages
C56: =H32 -> Medium Upstate Villages | D56: 16.6794 | J56: =C54 -> All Villages | K56: 6.443044764 | O56: =K32 -> Medium Upstate Villages
J57: =C55 -> Capital District Villages | K57: 6.025028947
J58: =C56 -> Medium Upstate Villages | K58: 5.606297015
B70: Indicator 8 | I70: Indicator 9
D72: ind 8
C73: pts | D73: Left | K73: ind 9
C74: 0 points | D74: 0.65 | J74: pts | K74: Left
C75: 1 point | D75: 0.05 | J75: 0 points | K75: 0.1
C76: 2 points | D76: 0.05 | J76: 1 point | K76: 0.05 | P76: Reported in
C77: 3 points | D77: 1.2 | J77: 2 points | K77: 0.05 | P77: ="for " & '1. Projection Worksheet'!$H$3 -> for 2017
J78: 3 points | K78: 1 | O78: =O54 -> All Villages
O79: =O55 -> Capital District Villages
C80: name | D80: amt | O80: =O56 -> Medium Upstate Villages
C81: =J55 -> Village of Coxsackie | D81: ='1. Projection Worksheet'!N34 -> 0.3538 | J81: name | K81: amt
C82: =J56 -> All Villages | D82: 0.4019190965 | J82: =C81 -> Village of Coxsackie | K82: ='1. Projection Worksheet'!N35 -> 0.1516
C83: =J57 -> Capital District Villages | D83: 0.3884131579 | J83: =C82 -> All Villages | K83: 0.09197597536
C84: =J58 -> Medium Upstate Villages | D84: 0.3957537313 | J84: =C83 -> Capital District Villages | K84: 0.1050078947
J85: =C84 -> Medium Upstate Villages | K85: 0.09371268657
G94: Fiscal Stress Score
I97: name | J97: amt
I98: =C81 -> Village of Coxsackie | J98: ='1. Projection Worksheet'!H37 -> 3.3
I99: =C82 -> All Villages | J99: 7.706365503
I100: =C83 -> Capital District Villages | J100: 10.51315789
I101: =C84 -> Medium Upstate Villages | J101: 8.714925373
I103: none
I105: Not in Fiscal Stress | J105: 45
I106: Susceptible FS | J106: 10
I107: Moderate FS | J107: 10
I108: Significant FS | J108: 35
B115: This page provides graphical comparisons of financial indicators for the selected municipality against selected peer groups. Peer groups include data for municipalities for which current AUDs have been filed. The tables show the number of municipalities which are included in each selected peer group. Greater caution should be taken when the number of units in the comparison group is small.
B122: Data as of 2/28/2018
